fUSD/lending_fUSD_20240531
["ID","MTS","AMOUNT","RATE_DAILY","PERIOD"]
[328332787,1717175449828,-500.0,0.00033299,11]
[328332788,1717175449837,-500.0,0.00033299,11]
[328332789,1717175449846,-500.0,0.00033299,11]
[328332790,1717175449854,-155.09,0.00033299,11]
[328332791,1717175449863,-155.09,0.00033299,11]
[328332792,1717175449872,-155.09,0.00033299,11]
[328332793,1717175449881,-155.09,0.00033299,11]
[328332794,1717175449890,-155.09,0.00033299,11]
[328332795,1717175449898,-155.09,0.00033299,11]
[328332796,1717175449908,-155.09,0.00033299,11]
[328332797,1717175449917,-155.09,0.00033299,11]
[328332798,1717175449926,-155.09,0.00033299,11]
[328332799,1717175449935,-155.09,0.00033299,11]
[328332800,1717175449943,-155.09,0.00033299,11]
[328332801,1717175449952,-155.09,0.00033299,11]
[328332802,1717175449961,-155.09,0.00033299,11]
[328332803,1717175449970,-155.09,0.00033299,11]
[328332804,1717175449979,-155.09,0.00033299,11]
[328332805,1717175449987,-155.09,0.00033299,11]
[328332806,1717175449996,-155.09,0.00033299,11]
[328332807,1717175450005,-155.18,0.00033299,11]
[328332808,1717175450014,-500.0,0.00033299,11]
[328332809,1717175450022,-500.0,0.00033299,11]
[328332810,1717175450031,-500.0,0.00033299,11]
[328332811,1717175450040,-500.0,0.00033299,11]
[328332812,1717175450049,-500.0,0.00033299,11]
[328332813,1717175450058,-500.0,0.00033299,11]
[328332814,1717175450067,-500.0,0.00033299,11]
[328332815,1717175450075,-500.0,0.00033299,11]
[328332816,1717175450084,-162.55,0.00033299,11]
[328332817,1717175450093,-500.0,0.00033299,11]
[328332818,1717175450101,-500.0,0.00033299,11]
[328332819,1717175450110,-500.0,0.00033299,11]
[328332820,1717175450120,-500.0,0.00033299,11]
[328332821,1717175450129,-500.0,0.00033299,11]
[328332822,1717175450138,-500.0,0.00033299,11]
[328332823,1717175450147,-500.0,0.00033299,11]
[328332824,1717175450156,-437.66,0.00033299,11]
[328332825,1717175450168,-500.0,0.00033299,11]
[328332826,1717175450177,-500.0,0.00033299,11]
[328332827,1717175450186,-500.0,0.00033299,11]
[328332828,1717175450195,-500.0,0.00033299,11]
[328332829,1717175450204,-500.0,0.00033299,11]
[328332830,1717175450214,-557.12,0.00033299,11]
[328332831,1717175450223,-500.0,0.00033299,11]
[328332832,1717175450233,-500.0,0.00033299,11]
[328332833,1717175450242,-500.0,0.00033299,11]
[328332834,1717175450251,-500.0,0.00033299,11]
[328332835,1717175450260,-500.0,0.00033299,11]
[328332836,1717175450270,-500.0,0.00033299,11]
[328332837,1717175450279,-500.0,0.00033299,11]
[328332838,1717175450288,-500.0,0.00033299,11]
[328332839,1717175450298,-500.0,0.00033299,11]
[328332840,1717175450307,-500.0,0.00033299,11]
[328332841,1717175450317,-500.0,0.00033299,11]
[328332842,1717175450326,-500.0,0.00033299,11]
[328332843,1717175450335,-500.0,0.00033299,11]
[328332844,1717175450344,-320.35,0.00033299,11]
[328332845,1717175450354,-500.0,0.00033299,11]
[328332846,1717175450363,-500.0,0.00033299,11]
[328332847,1717175450372,-500.0,0.00033299,11]
[328332848,1717175450381,-413.6296,0.00033299,11]
[328332849,1717175450390,-500.0,0.00033299,11]
[328332850,1717175450400,-161.58,0.00033299,11]
[328332851,1717175450410,-500.0,0.00033299,11]
[328332852,1717175450419,-500.0,0.00033299,11]
[328332853,1717175450427,-500.0,0.00033299,11]
[328332854,1717175450437,-500.0,0.00033299,11]
[328332855,1717175450446,-212.54,0.00033299,11]
[328332856,1717175450455,-500.0,0.00033299,11]
[328332857,1717175450464,-500.0,0.00033299,11]
[328332858,1717175450473,-500.0,0.00033299,11]
[328332859,1717175450482,-500.0,0.00033299,11]
[328332860,1717175450491,-500.0,0.00033299,11]
[328332861,1717175450500,-500.0,0.00033299,11]
[328332862,1717175450510,-500.0,0.00033299,11]
[328332863,1717175450519,-500.0,0.00033299,11]
[328332864,1717175450529,-500.0,0.00033299,11]
[328332865,1717175450538,-500.0,0.00033299,11]
[328332866,1717175450547,-500.0,0.00033299,11]
[328332867,1717175450557,-500.0,0.00033299,11]
[328332868,1717175450566,-500.0,0.00033299,11]
[328332869,1717175450575,-500.0,0.00033299,11]
[328332870,1717175450584,-500.0,0.00033299,11]
[328332871,1717175450594,-500.0,0.00033299,11]
[328332872,1717175450603,-480.37,0.00033299,11]
[328332873,1717175450614,-500.0,0.00033299,11]
[328332874,1717175450627,-500.0,0.00033299,11]
[328332875,1717175450636,-500.0,0.00033299,11]
[328332876,1717175450646,-500.0,0.00033299,11]
[328332877,1717175450656,-500.0,0.00033299,11]
[328332878,1717175450666,-500.0,0.00033299,11]
[328332879,1717175450675,-500.0,0.00033299,11]
[328332880,1717175450684,-500.0,0.00033299,11]
[328332881,1717175450696,-500.0,0.00033299,11]
[328332882,1717175450706,-500.0,0.00033299,11]
[328332883,1717175450719,-500.0,0.00033299,11]
[328332884,1717175450730,-500.0,0.00033299,11]
[328332885,1717175450739,-500.0,0.00033299,11]
[328332886,1717175450748,-1489.45,0.00033299,11]
[328332887,1717175450758,-1489.45,0.00033299,11]
[328332888,1717175450768,-1489.45,0.00033299,11]
[328332889,1717175450777,-1489.45,0.00033299,11]
[328332890,1717175450786,-1489.45,0.00033299,11]
[328332891,1717175450796,-1489.45,0.00033299,11]
[328332892,1717175450805,-1489.45,0.00033299,11]
[328332893,1717175450815,-1489.45,0.00033299,11]
[328332894,1717175450824,-1489.45,0.00033299,11]
[328332895,1717175450833,-1489.45,0.00033299,11]
[328332896,1717175450842,-500.0,0.00033299,11]
[328332897,1717175450852,-1489.45,0.00033299,11]
[328332898,1717175450861,-500.0,0.00033299,11]
[328332899,1717175450870,-1489.45,0.00033299,11]
[328332900,1717175450879,-1489.45,0.00033299,11]
[328332901,1717175450889,-500.0,0.00033299,11]
[328332902,1717175450898,-1489.45,0.00033299,11]
[328332903,1717175450908,-1489.45,0.00033299,11]
[328332904,1717175450918,-1489.45,0.00033299,11]
[328332905,1717175450927,-1489.45,0.00033299,11]
[328332906,1717175450936,-1489.46999999,0.00033299,11]
[328332907,1717175450945,-500.0,0.00033299,11]
[328332908,1717175450955,-500.0,0.00033299,11]
[328332909,1717175450964,-500.0,0.00033299,11]
[328332910,1717175450972,-500.0,0.00033299,11]
[328332911,1717175450982,-450.59,0.00033299,11]
[328332912,1717175450991,-500.0,0.00033299,11]
[328332913,1717175451000,-500.0,0.00033299,11]
[328332914,1717175451009,-500.0,0.00033299,11]
[328332915,1717175451018,-500.0,0.00033299,11]
[328332916,1717175451027,-500.0,0.00033299,11]
[328332917,1717175451036,-500.0,0.00033299,11]
[328332918,1717175451046,-500.0,0.00033299,11]
[328332919,1717175451054,-500.0,0.00033299,11]
[328332920,1717175451063,-516.6,0.00033299,11]
[328332921,1717175451072,-500.0,0.00033299,11]
[328332922,1717175451082,-500.0,0.00033299,11]
[328332923,1717175451091,-500.0,0.00033299,11]
[328332924,1717175451100,-500.0,0.00033299,11]
[328332925,1717175451111,-500.0,0.00033299,11]
[328332926,1717175451119,-434.41,0.00033299,11]
[328332927,1717175451130,-1007.83,0.00033299,11]
[328332928,1717175451141,-1007.83,0.00033299,11]
[328332929,1717175451150,-1007.83,0.00033299,11]
[328332930,1717175451161,-1007.83,0.00033299,11]
[328332931,1717175451171,-1007.83,0.00033299,11]
[328332932,1717175451180,-1007.83,0.00033299,11]
[328332933,1717175451192,-1007.83,0.00033299,11]
[328332934,1717175451202,-1007.83,0.00033299,11]
[328332935,1717175451211,-1007.83,0.00033299,11]
[328332936,1717175451223,-1007.83,0.00033299,11]
[328332937,1717175451233,-1007.83,0.00033299,11]
[328332938,1717175451243,-1007.83,0.00033299,11]
[328332939,1717175451253,-1007.83,0.00033299,11]
[328332940,1717175451262,-1007.83,0.00033299,11]
[328332941,1717175451273,-1007.83,0.00033299,11]
[328332942,1717175451282,-1007.83,0.00033299,11]
[328332943,1717175451292,-1008.01,0.00033299,11]
[328332944,1717175451302,-500.0,0.00033299,11]
[328332945,1717175451311,-500.0,0.00033299,11]
[328332946,1717175451324,-500.0,0.00033299,11]
[328332947,1717175451333,-500.0,0.00033299,11]
[328332948,1717175451344,-500.0,0.00033299,11]
[328332949,1717175451354,-500.0,0.00033299,11]
[328332950,1717175451363,-500.0,0.00033299,11]
[328332951,1717175451373,-500.0,0.00033299,11]
[328332952,1717175451383,-500.0,0.00033299,11]
[328332953,1717175451393,-500.0,0.00033299,11]
[328332954,1717175451404,-500.0,0.00033299,11]
[328332955,1717175451415,-523.43,0.00033299,11]
[328332956,1717175451425,-500.0,0.00033299,11]
[328332957,1717175451434,-500.0,0.00033299,11]
[328332958,1717175451444,-500.0,0.00033299,11]
[328332959,1717175451455,-500.0,0.00033299,11]
[328332960,1717175451464,-500.0,0.00033299,11]
[328332961,1717175451473,-500.0,0.00033299,11]
[328332962,1717175451482,-500.0,0.00033299,11]
[328332963,1717175451491,-500.0,0.00033299,11]
[328332964,1717175451500,-500.0,0.00033299,11]
[328332965,1717175451510,-500.0,0.00033299,11]
[328332966,1717175451519,-500.0,0.00033299,11]
[328332967,1717175451528,-500.0,0.00033299,11]
[328332968,1717175451538,-500.0,0.00033299,11]
[328332969,1717175451547,-500.0,0.00033299,11]
[328332970,1717175451557,-627.28,0.00033299,11]
[328332971,1717175451566,-151.0,0.00033299,7]
[328332972,1717175451576,-88968.67130087,0.000333,11]
[328332973,1717175451585,-1044410.98061593,0.000333,5]
[328332974,1717175451702,-1267.04265977,0.000333,5]
[328332975,1717175451714,-9485.16157941,0.000333,5]
[328332976,1717175451730,-352.63,0.00032466,2]
[328332977,1717175451739,-152871.80161213,0.000333,5]
[328332978,1717175451786,-150.0,0.00032466,2]
[328332979,1717175451796,-223.18315121,0.000332,2]
[328332980,1717175451809,-84.30573046,0.000332,2]
[328332981,1717175451819,-172.19715134,0.00033298,4]
[328332982,1717175451831,-276.07392806,0.00033298,4]
[328332983,1717175451961,-114776.43052722,0.000333,5]
[328332984,1717175451973,-357.47974993,0.000333,5]
[328332985,1717175451987,-1350.58122864,0.000333,5]
[328332986,1717175451999,-7246.37792036,0.000333,5]
[328332987,1717175452010,-2157.574536,0.000333,5]
[328332988,1717175452021,-112945.37085574,0.000333,5]
[328332989,1717175452032,-2438.865,0.000333,5]
[328332990,1717175452042,-3699.412588,0.000333,5]
[328332997,1717175974101,445.66698958,0.00017259,2]
[328332998,1717176059979,2365.55841434,0.00017259,2]
[328333000,1717176347146,-162.02,0.00024384,2]
[328333001,1717176347169,-556.0,0.000258,3]
[328333002,1717176347194,-335.15834,0.00027634,2]
[328333003,1717176347216,-339.7816034,0.00029567,2]
[328333004,1717176519742,1431.41681888,0.00017259,2]
[328333017,1717176632066,-157.43,0.00024384,2]
[328333019,1717176632075,-223.43889334,0.00029467,2]
[328333021,1717176632085,-163.15110666,0.00029567,2]
[328333025,1717176632176,-342.97999975,0.00029567,2]
[328333026,1717176632187,-404.72999987,0.00029567,2]
[328333027,1717176632199,-999.9006,0.00029567,2]
[328333028,1717176632289,-333.00794755,0.00029567,2]
[328333029,1717176632299,-121.78876051,0.00029567,2]
[328333030,1717176632308,-223.43889333,0.00029641,2]
[328333031,1717176632316,-223.43889333,0.00029814,2]
[328333032,1717176632324,-46.58786675,0.00029914,2]
[328333033,1717176632396,-404.7199998,0.00029914,2]
[328333052,1717176638018,-108.36213345,0.00029914,2]
[328333053,1717176638027,-250.0,0.00031499,2]
[328333054,1717176638037,-1298.04,0.00031568,2]
[328333055,1717176638045,-9460.16729859,0.00031598,2]
[328333056,1717176638136,-1152.65330141,0.00031598,2]
[328333057,1717176638146,-844.64,0.00031643,2]
[328333058,1717176638157,-608.22,0.00031796,2]
[328333059,1717176638166,-10000.0,0.0003183,60]
[328333060,1717176638176,-1423.12,0.00031836,2]
[328333061,1717176638187,-163.03,0.00031899,2]
[328333062,1717176638196,-151.42881607,0.0003193,7]
[328333063,1717176638205,-154.3670907,0.00031982,7]
[328333064,1717176638215,-17088.51,0.00032057,2]
[328333065,1717176638223,-559.67,0.00032178,2]
[328333066,1717176638242,-152.72526121,0.00032277,7]
[328333067,1717176638251,-154.3670907,0.00032316,7]
[328333068,1717176638260,-150.0,0.00032466,2]
[328333069,1717176638270,-352.63,0.00032466,2]
[328333070,1717176638279,-150.0,0.00032466,2]
[328333071,1717176638288,-421.7,0.00032466,2]
[328333072,1717176638298,-150.0,0.00032466,2]
[328333073,1717176638307,-163.84,0.00032466,2]
[328333074,1717176638316,-352.63,0.00032466,2]
[328333091,1717176638527,-150.0,0.00032466,2]
[328333093,1717176638536,-150.0,0.00032466,2]
[328333095,1717176638545,-421.7,0.00032466,2]
[328333097,1717176638554,-150.0,0.00032466,2]
[328333099,1717176638563,-163.84,0.00032466,2]
[328333101,1717176638571,-150.0,0.00032466,2]
[328333103,1717176638580,-150.0,0.00032466,2]
[328333104,1717176638589,-421.7,0.00032466,2]
[328333106,1717176638599,-163.84,0.00032466,2]
[328333108,1717176638610,-150.0,0.00032466,2]
[328333110,1717176638622,-352.63,0.00032466,2]
[328333112,1717176638632,-150.0,0.00032466,2]
[328333114,1717176638642,-352.63,0.00032466,2]
[328333116,1717176638651,-421.7,0.00032466,2]
[328333118,1717176638660,-163.84,0.00032466,2]
[328333119,1717176638669,-150.0,0.00032466,2]
[328333121,1717176638678,-421.7,0.00032466,2]
[328333123,1717176638687,-150.0,0.00032466,2]
[328333125,1717176638696,-352.63,0.00032466,2]
[328333127,1717176638705,-163.84,0.00032466,2]
[328333129,1717176638715,-150.0,0.00032466,2]
[328333130,1717176638724,-300.0,0.00032466,2]
[328333131,1717176638733,-327.26,0.00032466,2]
[328333132,1717176638742,-421.7,0.00032466,2]
[328333134,1717176638751,-351.79,0.00032466,2]
[328333136,1717176638761,-300.0,0.00032466,2]
[328333138,1717176638770,-421.7,0.00032466,2]
[328333140,1717176638779,-150.0,0.00032466,2]
[328333142,1717176638789,-163.78,0.00032466,2]
[328333144,1717176638798,-421.7,0.00032466,2]
[328333146,1717176638807,-262.81,0.00032466,2]
[328333148,1717176638817,-154.3670907,0.00032717,7]
[328333150,1717176638826,-500.0,0.00032876,11]
[328333152,1717176638835,-500.0,0.00032876,11]
[328333154,1717176638845,-424.62,0.00032876,11]
[328333156,1717176638855,-500.0,0.00032876,11]
[328333158,1717176638865,-4688.05,0.00032876,4]
[328333160,1717176638875,-150.0,0.00033032,2]
[328333162,1717176638885,-500.0,0.00033032,10]
[328333164,1717176638894,-150.0,0.00033097,2]
[328333166,1717176638903,-411.88786664,0.00033104,2]
[328333168,1717176638913,-150.0,0.00033105,2]
[328333170,1717176638923,-150.0,0.00033144,2]
[328333172,1717176638933,-150.0,0.00033154,2]
[328333174,1717176638942,-150.0,0.00033156,2]
[328333176,1717176638952,-150.0,0.00033158,2]
[328333178,1717176638961,-150.0,0.0003317,2]
[328333180,1717176638971,-150.0,0.0003317,2]
[328333182,1717176638980,-320.48409006,0.00033197,2]
[328333184,1717176638990,-514.32267902,0.00033199,10]
[328333186,1717176639000,-192.44122212,0.00033199,2]
[328333188,1717176639010,-514.32267902,0.00033199,10]
[328333191,1717176639025,-514.32267902,0.00033199,10]
[328333193,1717176639035,-192.44122212,0.00033199,2]
[328333195,1717176639044,-514.32267902,0.00033199,10]
[328333196,1717176639055,-514.32267902,0.00033199,10]
[328333199,1717176639065,-192.44122212,0.000332,2]
[328333201,1717176639077,-514.32267902,0.000332,10]
[328333203,1717176639089,-514.32267902,0.000332,10]
[328333205,1717176639101,-192.44122212,0.000332,2]
[328333207,1717176639113,-514.32267902,0.000332,10]
[328333209,1717176639123,-514.32267902,0.000332,10]
[328333211,1717176639132,-154.11352299,0.000332,2]
[328333213,1717176639142,-2538.89536615,0.000332,5]
[328333215,1717176639152,-54542.7218349,0.000332,10]
[328333217,1717176639166,-7763.41373192,0.000332,10]
[328333219,1717176639177,-298.500302,0.000332,7]
[328333221,1717176639187,-192.44122212,0.000332,2]
[328333223,1717176639198,-514.32267902,0.000332,10]
[328333225,1717176639207,-303.0,0.00033205,2]
[328333227,1717176639217,-150.0,0.00033248,2]
[328333229,1717176639227,-154.21,0.00033286,2]
[328333231,1717176639237,-154.21,0.0003329,2]
[328333233,1717176639247,-154.21,0.0003329,2]
[328333234,1717176639257,-154.21,0.0003329,2]
[328333235,1717176639268,-154.21,0.0003329,2]
[328333236,1717176639278,-154.21,0.0003329,2]
[328333237,1717176639288,-154.21,0.0003329,2]
[328333238,1717176639298,-154.21,0.0003329,2]
[328333239,1717176639308,-154.21,0.0003329,2]
[328333240,1717176639318,-4478.61673805,0.00033296,4]
[328333241,1717176639331,-7112.9962076,0.00033296,4]
[328333243,1717176639356,-18409.81885516,0.00033296,4]
[328333244,1717176639371,-70345.68519,0.00033296,4]
[328333245,1717176639382,-301.52429435,0.00033296,4]
[328333246,1717176642471,-472.70759198,0.00033125,2]
[328333247,1717176642483,-51.48328384,0.00033125,2]
[328333248,1717176642492,-774.70541284,0.00033296,4]
[328333249,1717176642512,-443.32523645,0.00033296,4]
[328333253,1717176643052,-3351.93150847,0.00033296,4]
[328333254,1717176643164,-8406.16569976,0.00033296,4]
[328333255,1717176643177,-6205.73315822,0.00033296,4]
[328333256,1717176643437,-152871.80161213,0.00033296,4]
[328333274,1717176646223,-595.02413112,0.00033296,4]
[328333275,1717176646531,-3353.37747292,0.00033296,4]
[328333276,1717176672792,4941.79926056,0.00017259,2]
[328333277,1717176676161,207.8438008,0.00017259,2]
[328333279,1717176686034,1181.55417799,0.00017259,2]
[328333280,1717176704038,1259.69280578,0.00017259,2]
[328333281,1717176720493,155.0,0.00017259,2]
[328333282,1717176824419,272425.1129449,0.00014,2]
[328333283,1717176824448,7000.0,0.00014,2]
[328333284,1717176824476,1377.39,0.00014,2]
[328333285,1717176824505,3000.0,0.00014,2]
[328333286,1717176824534,1933899.46147927,0.00014,2]
[328333290,1717176997748,10808.0,0.00011,2]
[328333291,1717176997771,4224.87320639,0.00011,2]
[328333295,1717177361846,-2365.55841434,0.00017259,2]
[328333296,1717177398107,362.51321978,0.00011,2]
[328333297,1717177545903,-150.0,0.00019725,2]
[328333298,1717177545925,-150.0,0.00019725,2]
[328333299,1717177545944,-598.33,0.0002974,2]
[328333300,1717177545964,-250.0,0.00031,2]
[328333301,1717177545985,-351.52656943,0.00031693,2]
[328333312,1717177832413,-2365.55841434,0.00029582,2]
[328333313,1717177832423,-568.41,0.00029583,2]
[328333314,1717177832433,-8322.38,0.00031499,60]
[328333315,1717177832443,-1404.25,0.00031538,2]
[328333316,1717177832453,-165.29677628,0.00031592,2]
[328333317,1717177832463,-499.99,0.00031592,2]
[328333318,1717177832473,-2584.59,0.00031592,18]
[328333319,1717177832483,-675.71,0.00031792,2]
[328333320,1717177832493,-250.0,0.00031795,2]
[328333321,1717177832502,-568.41,0.00031847,2]
[328333322,1717177832511,-200.0,0.000319,11]
[328333323,1717177832521,-200.01,0.00031921,2]
[328333324,1717177832530,-152.72526121,0.00031952,7]
[328333325,1717177832540,-9147.77310504,0.0003199,2]
[328333326,1717177832549,-500.0,0.00032,11]
[328333327,1717177832559,-70599.48731685,0.00032,2]
[328333328,1717177832568,-800.0,0.000321,11]
[328333329,1717177832578,-1100.0,0.000322,11]
[328333330,1717177832587,-166.50001665,0.00032268,7]
[328333331,1717177832597,-1400.0,0.000323,11]
[328333332,1717177832606,-151.42881607,0.00032325,7]
[328333333,1717177832616,-166.50001665,0.00032352,7]
[328333334,1717177832625,-200.0,0.000324,11]
[328333335,1717177832634,-421.53,0.00032466,2]
[328333336,1717177832644,-150.0,0.00032466,2]
[328333337,1717177832654,-215.38,0.00032466,2]
[328333338,1717177832664,-150.0,0.00032478,2]
[328333339,1717177832674,-352.63,0.00032478,2]
[328333340,1717177832685,-421.53,0.00032478,2]
[328333341,1717177832696,-150.0,0.00032478,2]
[328333342,1717177832706,-165.31,0.00032478,2]
[328333343,1717177832717,-150.0,0.00032478,2]
[328333344,1717177832726,-352.63,0.00032478,2]
[328333345,1717177832736,-150.0,0.00032478,2]
[328333346,1717177832745,-163.84,0.00032478,2]
[328333347,1717177832755,-163.84,0.00032478,2]
[328333348,1717177832764,-150.0,0.00032478,2]
[328333349,1717177832773,-352.63,0.00032478,2]
[328333350,1717177832791,-150.0,0.00032478,2]
[328333351,1717177832803,-150.0,0.00032478,2]
[328333353,1717177832813,-163.84,0.00032478,2]
[328333355,1717177832823,-352.63,0.00032478,2]
[328333357,1717177832833,-163.84,0.00032478,2]
[328333359,1717177832843,-150.0,0.00032478,2]
[328333361,1717177832853,-352.63,0.00032478,2]
[328333363,1717177832863,-163.84,0.00032478,2]
[328333365,1717177832873,-352.63,0.00032478,2]
[328333367,1717177832883,-304.54,0.00032478,2]
[328333368,1717177832893,-163.84,0.00032478,2]
[328333369,1717177832902,-352.63,0.00032478,2]
[328333370,1717177832912,-163.84,0.00032478,2]
[328333371,1717177832921,-352.63,0.00032478,2]
[328333372,1717177832931,-163.84,0.00032478,2]
[328333373,1717177832940,-200.0,0.000325,11]
[328333374,1717177832950,-152.98006227,0.00032505,7]
[328333375,1717177832959,-200.0,0.000326,11]
[328333376,1717177832969,-161.27213112,0.0003266,7]
[328333377,1717177832978,-200.0,0.000327,11]
[328333378,1717177832988,-300.0,0.0003274,2]
[328333379,1717177832998,-869.0,0.000328,11]
[328333380,1717177833007,-754.12482,0.0003296,2]
[328333381,1717177833017,-174.25743602,0.00032999,2]
[328333382,1717177833028,-320.48409006,0.00032999,2]
[328333383,1717177833038,-3623.2189902,0.00032999,10]
[328333384,1717177833049,-8003.34713303,0.00033,30]
[328333385,1717177833058,-760.9301,0.00033,2]
[328333386,1717177833068,-462.89041119,0.00033,10]
[328333387,1717177833078,-3623.21899015,0.00033021,10]
[328333388,1717177833088,-462.89041111,0.00033022,10]
[328333389,1717177833098,-1058.6595,0.00033027,2]
[328333390,1717177833108,-500.0,0.00033032,10]
[328333391,1717177833117,-462.89041111,0.00033044,10]
[328333392,1717177833127,-462.89041111,0.00033067,10]
[328333393,1717177833137,-462.89041111,0.00033089,10]
[328333394,1717177833148,-150.21652061,0.00033089,2]
[328333395,1717177833158,-500.0,0.00033098,11]
[328333396,1717177833168,-500.0,0.00033098,11]
[328333397,1717177833181,-500.0,0.00033098,11]
[328333398,1717177833191,-500.0,0.00033098,11]
[328333399,1717177833200,-500.0,0.00033098,11]
[328333400,1717177833210,-500.0,0.00033098,11]
[328333401,1717177833219,-500.0,0.00033098,11]
[328333402,1717177833229,-500.0,0.00033098,11]
[328333403,1717177833238,-193.94339613,0.00033099,5]
[328333404,1717177833248,-145599.88468287,0.00033099,4]
[328333405,1717177833262,-933.91680823,0.00033099,4]
[328333406,1717177833274,-600.0,0.00033099,4]
[328333407,1717177833286,-877.69203614,0.00033099,4]
[328333408,1717177833299,-448.74875887,0.00033099,4]
[328333409,1717177833332,-448.68695906,0.00033099,4]
[328333410,1717177833346,-2095.84322377,0.00033099,4]
[328333411,1717177833358,-255.97559429,0.00033099,4]
[328333412,1717177833369,-999.6,0.00033099,4]
[328333413,1717177833380,-1000.3932,0.00033099,4]
[328333414,1717177833392,-1347.022,0.00033099,4]
[328333415,1717177838269,-3623.21899015,0.00033044,10]
[328333417,1717177838279,-2753.82870981,0.00033099,4]
[328333420,1717177838404,-4051.10284792,0.00033099,4]
[328333445,1717177842292,-269.63529999,0.00033066,10]
[328333446,1717177842303,-288.40183904,0.00033066,10]
[328333447,1717177842429,-1997.2030818,0.00033066,10]
[328333448,1717177842440,-844.96821136,0.00033066,10]
[328333449,1717177842453,-223.01055796,0.00033066,10]
[328333450,1717177842462,-272.40734389,0.00033099,4]
[328333451,1717177842562,-3049.76858233,0.00033099,4]
[328333465,1717177843843,-65686.64996995,0.00033099,4]
[328333467,1717177843855,-1330.27184774,0.00033099,4]
[328333470,1717177843867,-10544.95259995,0.00033099,4]
[328333501,1717177846431,-2050.69074165,0.00033088,10]
[328333502,1717177846538,-318.36629838,0.00033088,10]
[328333506,1717177848476,-291.85906698,0.00033088,10]
[328333512,1717177860513,251.23012888,0.00017259,2]
[328333513,1717177901581,348.76987112,0.00017259,2]
[328333514,1717177966052,-2000.0,0.00034691,30]
[328333515,1717177966075,-2000.0,0.00034691,30]
[328333516,1717177966097,-2000.0,0.00034691,30]
[328333517,1717177966120,-2000.0,0.00034691,30]
[328333518,1717177966143,-2000.0,0.00034691,30]
[328333519,1717177966164,-2000.0,0.00034691,30]
[328333520,1717177966187,-780.0,0.00034691,120]
[328333521,1717177966208,-1883.8193,0.00034691,30]
[328333522,1717177966230,-1366.07238603,0.00034691,60]
[328333523,1717177966253,-1000.0,0.00034691,30]
[328333524,1717177966275,-1000.0,0.00034691,30]
[328333525,1717177966298,-1000.0,0.00034691,60]
[328333526,1717177966320,-1000.0,0.00034691,30]
[328333527,1717177966343,-1000.0,0.00034691,30]
[328333528,1717177966367,-1000.0,0.00034691,60]
[328333529,1717177966390,-1000.0,0.00034691,60]
[328333530,1717177966412,-1000.0,0.00034691,60]
[328333531,1717177966435,-1000.0,0.00034691,30]
[328333532,1717177966460,-1000.0,0.00034691,30]
[328333533,1717177966484,-189.0,0.00034691,30]
[328333534,1717177966509,-189.0,0.00034691,30]
[328333535,1717177966531,-1000.0,0.00034691,60]
[328333536,1717177966556,-1000.0,0.00034691,30]
[328333537,1717177966578,-1000.0,0.00034691,30]
[328333538,1717177966601,-1000.0,0.00034691,120]
[328333539,1717177966624,-1000.0,0.00034691,30]
[328333540,1717177966648,-1000.0,0.00034691,60]